[Event "Titled Tuesday Blitz June 20 Early 2023"]
[White "Gadimbayli, Abdulla"]
[Black "Korobov, Anton"]
[WhiteFideId "13404938"]
[BlackFideId "14105730"]
[WhiteElo "2386"]
[BlackElo "2638"]
[Result "0-1"]
[Round "5"]
[TimeControl "180+2"]
[Date "2023.06.20"]
[WhiteClock "0:00:01"]
[BlackClock "0:00:42"]
[Board "7"]

1. e4 {[%clk 0:02:57]}  c5 {[%clk 0:02:59]} 2. Nf3 {[%clk 0:02:57]}  d6 {[%clk 0:02:59]} 3. d4 {[%clk 0:02:54]}  cxd4 {[%clk 0:02:59]} 4. Nxd4 {[%clk 0:02:55]}  Nf6 {[%clk 0:02:59]} 5. Nc3 {[%clk 0:02:56]}  a6 {[%clk 0:03:00]} 6. g3 {[%clk 0:02:56]}  e6 {[%clk 0:02:59]} 7. Bg2 {[%clk 0:02:55]}  Be7 {[%clk 0:03:00]} 8. O-O {[%clk 0:02:56]}  Qc7 {[%clk 0:03:00]} 9. Be3 {[%clk 0:02:55]}  Nc6 {[%clk 0:02:59]} 10. h3 {[%clk 0:02:44]}  Ne5 {[%clk 0:02:50]} 11. Qe2 {[%clk 0:02:31]}  Rb8 {[%clk 0:02:38]} 12. Rad1 {[%clk 0:02:29]}  b5 {[%clk 0:02:34]} 13. a3 {[%clk 0:02:27]}  O-O {[%clk 0:02:29]} 14. f4 {[%clk 0:01:59]}  Nc4 {[%clk 0:02:29]} 15. Bc1 {[%clk 0:01:58]}  Bb7 {[%clk 0:02:13]} 16. Rd3 {[%clk 0:01:09]}  g6 {[%clk 0:02:05]} 17. Kh2 {[%clk 0:01:07]}  e5 {[%clk 0:01:58]} 18. Nf3 {[%clk 0:01:03]}  exf4 {[%clk 0:01:48]} 19. gxf4 {[%clk 0:01:01]}  Nh5 {[%clk 0:01:46]} 20. b3 {[%clk 0:00:58]}  Nb6 {[%clk 0:01:46]} 21. Be3 {[%clk 0:00:55]}  Nd7 {[%clk 0:01:42]} 22. Nd5 {[%clk 0:00:44]}  Bxd5 {[%clk 0:01:42]} 23. Rxd5 {[%clk 0:00:44]}  Ndf6 {[%clk 0:01:38]} 24. Rd4 {[%clk 0:00:43]}  Rbc8 {[%clk 0:01:36]} 25. c4 {[%clk 0:00:40]}  bxc4 {[%clk 0:01:32]} 26. bxc4 {[%clk 0:00:41]}  Rfe8 {[%clk 0:01:26]} 27. Qd3 {[%clk 0:00:25]}  Bf8 {[%clk 0:01:19]} 28. Nd2 {[%clk 0:00:06]}  Rb8 {[%clk 0:01:03]} 29. Kg1 {[%clk 0:00:05]}  Rb2 {[%clk 0:01:00]} 30. Qc3 {[%clk 0:00:04]}  Reb8 {[%clk 0:00:57]} 31. Rd3 {[%clk 0:00:04]}  Bg7 {[%clk 0:00:55]} 32. e5 {[%clk 0:00:04]}  dxe5 {[%clk 0:00:52]} 33. fxe5 {[%clk 0:00:05]}  Ng3 {[%clk 0:00:52]} 34. Re1 {[%clk 0:00:03]}  Nfh5 {[%clk 0:00:49]} 35. Bf2 {[%clk 0:00:03]}  Nf5 {[%clk 0:00:45]} 36. Ne4 {[%clk 0:00:01]}  Nf4 {[%clk 0:00:43]} 37. Rg3 {[%clk 0:00:01]}  Bxe5 {[%clk 0:00:43]} 38. Qd3 {[%clk 0:00:01]}  Nxd3 {[%clk 0:00:42]} 0-1


[Site "https://www.chess.com"]

[Event "Titled Tuesday Blitz June 20 Early 2023"]
[White "Gordievsky, Dmitry"]
[Black "Lobanov, Sergei"]
[WhiteFideId "24112798"]
[BlackFideId "24183750"]
[WhiteElo "2546"]
[BlackElo "2501"]
[Result "1-0"]
[Round "5"]
[TimeControl "180+2"]
[Date "2023.06.20"]
[WhiteClock "0:00:02"]
[BlackClock "0:00:00"]
[Board "13"]

1. Nf3 {[%clk 0:03:00]}  d5 {[%clk 0:02:59]} 2. g3 {[%clk 0:03:00]}  Nf6 {[%clk 0:02:58]} 3. Bg2 {[%clk 0:03:00]}  e6 {[%clk 0:02:58]} 4. O-O {[%clk 0:03:00]}  Be7 {[%clk 0:02:57]} 5. b3 {[%clk 0:02:59]}  c5 {[%clk 0:02:54]} 6. Bb2 {[%clk 0:02:59]}  O-O {[%clk 0:02:50]} 7. d4 {[%clk 0:02:57]}  cxd4 {[%clk 0:02:48]} 8. Nbd2 {[%clk 0:02:56]}  b6 {[%clk 0:02:43]} 9. Nxd4 {[%clk 0:02:38]}  Bb7 {[%clk 0:02:43]} 10. c4 {[%clk 0:02:36]}  Nc6 {[%clk 0:02:43]} 11. Rc1 {[%clk 0:02:30]}  Nxd4 {[%clk 0:02:35]} 12. Bxd4 {[%clk 0:02:30]}  Ba3 {[%clk 0:02:33]} 13. Rc2 {[%clk 0:02:30]}  Qe7 {[%clk 0:02:18]} 14. Qa1 {[%clk 0:02:28]}  Rac8 {[%clk 0:02:11]} 15. Bc3 {[%clk 0:01:42]}  Rfd8 {[%clk 0:01:56]} 16. e3 {[%clk 0:01:10]}  a6 {[%clk 0:01:31]} 17. Nb1 {[%clk 0:00:49]}  Bb4 {[%clk 0:01:09]} 18. Bxb4 {[%clk 0:00:45]}  Qxb4 {[%clk 0:01:10]} 19. Rfc1 {[%clk 0:00:45]}  Ba8 {[%clk 0:00:57]} 20. Qd4 {[%clk 0:00:20]}  h6 {[%clk 0:00:47]} 21. Qd2 {[%clk 0:00:04]}  Qe7 {[%clk 0:00:39]} 22. Qe1 {[%clk 0:00:03]}  dxc4 {[%clk 0:00:24]} 23. Bxa8 {[%clk 0:00:03]}  Rxa8 {[%clk 0:00:25]} 24. Rxc4 {[%clk 0:00:04]}  Rd7 {[%clk 0:00:26]} 25. Rc8+ {[%clk 0:00:03]}  Rxc8 {[%clk 0:00:26]} 26. Rxc8+ {[%clk 0:00:04]}  Kh7 {[%clk 0:00:26]} 27. Rc1 {[%clk 0:00:04]}  Ng4 {[%clk 0:00:21]} 28. Qe2 {[%clk 0:00:04]}  Ne5 {[%clk 0:00:17]} 29. f4 {[%clk 0:00:04]}  Ng6 {[%clk 0:00:05]} 30. Qxa6 {[%clk 0:00:04]}  Qb4 {[%clk 0:00:05]} 31. Qe2 {[%clk 0:00:04]}  e5 {[%clk 0:00:04]} 32. f5 {[%clk 0:00:03]}  Ne7 {[%clk 0:00:04]} 33. e4 {[%clk 0:00:02]}  Rd4 {[%clk 0:00:04]} 34. Nc3 {[%clk 0:00:02]}  Nc6 {[%clk 0:00:05]} 35. Rc2 {[%clk 0:00:02]}  Qe7 {[%clk 0:00:03]} 36. Nd5 {[%clk 0:00:02]}  Qd6 {[%clk 0:00:04]} 37. Nc3 {[%clk 0:00:01]}  Ne7 {[%clk 0:00:04]} 38. Qf3 {[%clk 0:00:02]}  Rd2 {[%clk 0:00:03]} 39. Rxd2 {[%clk 0:00:02]}  Qxd2 {[%clk 0:00:04]} 40. Ne2 {[%clk 0:00:02]}  Nc6 {[%clk 0:00:04]} 41. Qf2 {[%clk 0:00:02]}  Qd3 {[%clk 0:00:04]} 42. Qxb6 {[%clk 0:00:02]}  Qxe4 {[%clk 0:00:05]} 43. Qf2 {[%clk 0:00:02]}  Nb4 {[%clk 0:00:05]} 44. f6 {[%clk 0:00:02]}  g6 {[%clk 0:00:04]} 45. Nc3 {[%clk 0:00:02]}  Qd3 {[%clk 0:00:00]} 46. Qa7 {[%clk 0:00:02]} 1-0


[Site "https://www.chess.com"]

[Event "Titled Tuesday Blitz June 20 Early 2023"]
[White "Seo, Jung Min"]
[Black "Tabatabaei, M. Amin"]
[WhiteFideId "1734687"]
[BlackFideId "12521213"]
[WhiteElo "2468"]
[BlackElo "2575"]
[Result "0-1"]
[Round "5"]
[TimeControl "180+2"]
[Date "2023.06.20"]
[WhiteClock "0:00:50"]
[BlackClock "0:02:30"]
[Board "14"]

1. d4 {[%clk 0:03:00]}  Nf6 {[%clk 0:03:00]} 2. c4 {[%clk 0:03:00]}  g6 {[%clk 0:03:00]} 3. Nc3 {[%clk 0:02:59]}  d5 {[%clk 0:03:01]} 4. cxd5 {[%clk 0:02:56]}  Nxd5 {[%clk 0:03:02]} 5. e4 {[%clk 0:02:56]}  Nxc3 {[%clk 0:03:02]} 6. bxc3 {[%clk 0:02:56]}  Bg7 {[%clk 0:03:03]} 7. Nf3 {[%clk 0:02:51]}  c5 {[%clk 0:03:03]} 8. Be3 {[%clk 0:02:42]}  Qa5 {[%clk 0:03:03]} 9. Qd2 {[%clk 0:02:42]}  Nc6 {[%clk 0:03:03]} 10. Rb1 {[%clk 0:02:33]}  a6 {[%clk 0:03:03]} 11. Rc1 {[%clk 0:02:32]}  cxd4 {[%clk 0:03:03]} 12. cxd4 {[%clk 0:02:32]}  Qxd2+ {[%clk 0:03:03]} 13. Kxd2 {[%clk 0:02:32]}  e6 {[%clk 0:03:02]} 14. Be2 {[%clk 0:02:19]}  O-O {[%clk 0:03:02]} 15. Rhd1 {[%clk 0:02:20]}  Rd8 {[%clk 0:02:51]} 16. Ke1 {[%clk 0:02:19]}  Bd7 {[%clk 0:02:50]} 17. Rb1 {[%clk 0:02:02]}  b5 {[%clk 0:02:49]} 18. Bg5 {[%clk 0:01:55]}  Rdc8 {[%clk 0:02:45]} 19. Rbc1 {[%clk 0:01:48]}  h6 {[%clk 0:02:35]} 20. Be3 {[%clk 0:01:46]}  Nb4 {[%clk 0:02:31]} 21. Ne5 {[%clk 0:01:27]}  Be8 {[%clk 0:02:31]} 22. Ra1 {[%clk 0:00:50]}  Nc2+ {[%clk 0:02:30]} 0-1


[Site "https://www.chess.com"]

[Event "Titled Tuesday Blitz June 20 Early 2023"]
[White "Andreikin, Dmitry"]
[Black "Atakhan, Abtin"]
[WhiteFideId "4158814"]
[BlackFideId "22502203"]
[WhiteElo "2736"]
[BlackElo "2008"]
[Result "1-0"]
[Round "5"]
[TimeControl "180+2"]
[Date "2023.06.20"]
[WhiteClock "0:00:09"]
[BlackClock "0:00:00"]
[Board "15"]

1. e4 {[%clk 0:03:00]}  c5 {[%clk 0:03:00]} 2. Nc3 {[%clk 0:03:00]}  Nc6 {[%clk 0:03:00]} 3. Bb5 {[%clk 0:02:59]}  Nd4 {[%clk 0:03:00]} 4. Nf3 {[%clk 0:02:56]}  e6 {[%clk 0:02:56]} 5. O-O {[%clk 0:02:54]}  a6 {[%clk 0:02:56]} 6. Bd3 {[%clk 0:02:53]}  Nc6 {[%clk 0:02:56]} 7. Be2 {[%clk 0:02:53]}  Nd4 {[%clk 0:02:55]} 8. Bd3 {[%clk 0:02:52]}  Nc6 {[%clk 0:02:55]} 9. Be2 {[%clk 0:02:50]}  Nd4 {[%clk 0:02:55]} 10. d3 {[%clk 0:02:51]}  Bd6 {[%clk 0:02:30]} 11. Re1 {[%clk 0:02:44]}  Ne7 {[%clk 0:02:26]} 12. e5 {[%clk 0:02:44]}  Bc7 {[%clk 0:02:19]} 13. Ne4 {[%clk 0:02:42]}  Nxf3+ {[%clk 0:02:15]} 14. Bxf3 {[%clk 0:02:43]}  Bxe5 {[%clk 0:02:16]} 15. Nxc5 {[%clk 0:02:43]}  Bxh2+ {[%clk 0:02:14]} 16. Kxh2 {[%clk 0:02:41]}  Qc7+ {[%clk 0:02:14]} 17. Kg1 {[%clk 0:02:40]}  Qxc5 {[%clk 0:02:15]} 18. d4 {[%clk 0:02:41]}  Qd6 {[%clk 0:02:08]} 19. d5 {[%clk 0:02:40]}  e5 {[%clk 0:01:45]} 20. c4 {[%clk 0:02:38]}  f6 {[%clk 0:01:40]} 21. c5 {[%clk 0:02:31]}  Qxc5 {[%clk 0:01:40]} 22. Be3 {[%clk 0:02:31]}  Qd6 {[%clk 0:01:38]} 23. Rc1 {[%clk 0:02:30]}  b6 {[%clk 0:01:37]} 24. Qb3 {[%clk 0:02:30]}  Rb8 {[%clk 0:01:36]} 25. Red1 {[%clk 0:02:22]}  Nf5 {[%clk 0:01:32]} 26. Bg4 {[%clk 0:01:53]}  Nxe3 {[%clk 0:01:30]} 27. fxe3 {[%clk 0:01:54]}  Ke7 {[%clk 0:01:07]} 28. e4 {[%clk 0:01:51]}  b5 {[%clk 0:01:05]} 29. Kh2 {[%clk 0:01:46]}  h5 {[%clk 0:01:04]} 30. Bf5 {[%clk 0:01:46]}  Bb7 {[%clk 0:00:51]} 31. Rc7 {[%clk 0:01:31]}  Rhd8 {[%clk 0:00:36]} 32. Qg3 {[%clk 0:01:27]}  Kf8 {[%clk 0:00:34]} 33. Rcc1 {[%clk 0:00:54]}  g5 {[%clk 0:00:23]} 34. Qh3 {[%clk 0:00:38]}  Kg7 {[%clk 0:00:22]} 35. Rc3 {[%clk 0:00:39]}  h4 {[%clk 0:00:18]} 36. Rdc1 {[%clk 0:00:38]}  Rbc8 {[%clk 0:00:16]} 37. Qf3 {[%clk 0:00:29]}  Kh6 {[%clk 0:00:15]} 38. g3 {[%clk 0:00:29]}  Rxc3 {[%clk 0:00:15]} 39. Rxc3 {[%clk 0:00:28]}  hxg3+ {[%clk 0:00:14]} 40. Kxg3 {[%clk 0:00:29]}  Kg7 {[%clk 0:00:13]} 41. Qh5 {[%clk 0:00:29]}  Rh8 {[%clk 0:00:12]} 42. Qg6+ {[%clk 0:00:26]}  Kf8 {[%clk 0:00:12]} 43. Bxd7 {[%clk 0:00:17]}  Qb6 {[%clk 0:00:07]} 44. Rc5 {[%clk 0:00:11]}  Rg8 {[%clk 0:00:03]} 45. Qh6+ {[%clk 0:00:09]}  Ke7 {[%clk 0:00:00]} 46. b4 {[%clk 0:00:09]} 1-0


[Site "https://www.chess.com"]

[Event "Titled Tuesday Blitz June 20 Early 2023"]
[White "Hakobyan, Aram"]
[Black "Eugene, Floryan"]
[WhiteFideId "13306677"]
[BlackFideId "20694784"]
[WhiteElo "2584"]
[BlackElo "2369"]
[Result "1-0"]
[Round "5"]
[TimeControl "180+2"]
[Date "2023.06.20"]
[WhiteClock "0:00:44"]
[BlackClock "0:00:17"]
[Board "17"]

1. d4 {[%clk 0:03:00]}  f5 {[%clk 0:02:56]} 2. Nf3 {[%clk 0:03:00]}  Nf6 {[%clk 0:02:54]} 3. c4 {[%clk 0:03:00]}  g6 {[%clk 0:02:54]} 4. Nc3 {[%clk 0:03:00]}  Bg7 {[%clk 0:02:52]} 5. g3 {[%clk 0:03:01]}  O-O {[%clk 0:02:52]} 6. Bg2 {[%clk 0:03:02]}  d6 {[%clk 0:02:52]} 7. O-O {[%clk 0:03:03]}  c6 {[%clk 0:02:53]} 8. Rb1 {[%clk 0:02:58]}  a5 {[%clk 0:02:46]} 9. a3 {[%clk 0:02:54]}  Qc7 {[%clk 0:02:44]} 10. d5 {[%clk 0:02:42]}  e5 {[%clk 0:02:42]} 11. dxe6 {[%clk 0:02:43]}  Bxe6 {[%clk 0:02:41]} 12. b3 {[%clk 0:02:41]}  Na6 {[%clk 0:02:21]} 13. Bf4 {[%clk 0:02:40]}  Rad8 {[%clk 0:02:18]} 14. Ng5 {[%clk 0:02:25]}  Qe7 {[%clk 0:02:10]} 15. Nxe6 {[%clk 0:02:21]}  Qxe6 {[%clk 0:02:10]} 16. Qc2 {[%clk 0:02:02]}  Rfe8 {[%clk 0:02:05]} 17. b4 {[%clk 0:01:38]}  axb4 {[%clk 0:01:55]} 18. axb4 {[%clk 0:01:38]}  Qxc4 {[%clk 0:01:54]} 19. b5 {[%clk 0:01:39]}  Nb4 {[%clk 0:01:45]} 20. Qd2 {[%clk 0:01:24]}  Nbd5 {[%clk 0:01:09]} 21. Nxd5 {[%clk 0:01:22]}  cxd5 {[%clk 0:01:04]} 22. Rfc1 {[%clk 0:00:52]}  Qxe2 {[%clk 0:00:41]} 23. Bxd5+ {[%clk 0:00:52]}  Nxd5 {[%clk 0:00:25]} 24. Qxd5+ {[%clk 0:00:52]}  Kh8 {[%clk 0:00:26]} 25. Qxb7 {[%clk 0:00:53]}  Bd4 {[%clk 0:00:26]} 26. Rf1 {[%clk 0:00:53]}  Bc5 {[%clk 0:00:20]} 27. b6 {[%clk 0:00:48]}  Qe7 {[%clk 0:00:18]} 28. Qxe7 {[%clk 0:00:46]}  Rxe7 {[%clk 0:00:19]} 29. Bg5 {[%clk 0:00:47]}  Red7 {[%clk 0:00:20]} 30. Bxd8 {[%clk 0:00:45]}  Rxd8 {[%clk 0:00:20]} 31. b7 {[%clk 0:00:43]}  Rb8 {[%clk 0:00:21]} 32. Rb5 {[%clk 0:00:44]}  Kg7 {[%clk 0:00:21]} 33. Ra1 {[%clk 0:00:44]}  d5 {[%clk 0:00:18]} 34. Ra8 {[%clk 0:00:42]}  Bd6 {[%clk 0:00:18]} 35. Rxb8 {[%clk 0:00:43]}  Bxb8 {[%clk 0:00:19]} 36. Rxd5 {[%clk 0:00:43]}  Bc7 {[%clk 0:00:17]} 37. Rd7+ {[%clk 0:00:44]} 1-0


[Site "https://www.chess.com"]

[Event "Titled Tuesday Blitz June 20 Early 2023"]
[White "Chigaev, Maksim"]
[Black "brm72"]
[WhiteFideId "4108116"]
[WhiteElo "2561"]
[BlackElo "2566"]
[Result "1-0"]
[Round "5"]
[TimeControl "180+2"]
[Date "2023.06.20"]
[WhiteClock "0:00:05"]
[BlackClock "0:00:06"]
[Board "19"]

1. e4 {[%clk 0:02:53]}  c6 {[%clk 0:02:59]} 2. Nf3 {[%clk 0:02:52]}  d5 {[%clk 0:03:00]} 3. d3 {[%clk 0:02:52]}  Bg4 {[%clk 0:02:58]} 4. h3 {[%clk 0:02:51]}  Bh5 {[%clk 0:02:58]} 5. g4 {[%clk 0:02:51]}  Bg6 {[%clk 0:02:59]} 6. h4 {[%clk 0:02:52]}  h6 {[%clk 0:02:59]} 7. h5 {[%clk 0:02:49]}  Bh7 {[%clk 0:02:59]} 8. g5 {[%clk 0:02:49]}  dxe4 {[%clk 0:02:56]} 9. g6 {[%clk 0:02:49]}  fxg6 {[%clk 0:02:56]} 10. hxg6 {[%clk 0:02:38]}  Bxg6 {[%clk 0:02:55]} 11. Ne5 {[%clk 0:02:37]}  Qa5+ {[%clk 0:02:54]} 12. Nc3 {[%clk 0:02:34]}  Qxe5 {[%clk 0:02:52]} 13. d4 {[%clk 0:02:33]}  Qd6 {[%clk 0:02:46]} 14. Qg4 {[%clk 0:02:30]}  Nd7 {[%clk 0:02:29]} 15. Bf4 {[%clk 0:02:27]}  Qf6 {[%clk 0:02:13]} 16. O-O-O {[%clk 0:02:16]}  e6 {[%clk 0:02:05]} 17. Bg2 {[%clk 0:02:06]}  Bb4 {[%clk 0:01:38]} 18. Nxe4 {[%clk 0:01:51]}  Bxe4 {[%clk 0:01:34]} 19. Bxe4 {[%clk 0:01:51]}  O-O-O {[%clk 0:01:25]} 20. a3 {[%clk 0:01:19]}  Ba5 {[%clk 0:01:20]} 21. Kb1 {[%clk 0:01:18]}  Bc7 {[%clk 0:01:15]} 22. Be3 {[%clk 0:01:11]}  Ne7 {[%clk 0:01:13]} 23. Qg2 {[%clk 0:01:07]}  Nd5 {[%clk 0:01:08]} 24. c4 {[%clk 0:01:04]}  Nxe3 {[%clk 0:01:05]} 25. fxe3 {[%clk 0:01:05]}  e5 {[%clk 0:01:00]} 26. d5 {[%clk 0:00:55]}  Nc5 {[%clk 0:00:59]} 27. Rhf1 {[%clk 0:00:44]}  Qg5 {[%clk 0:00:51]} 28. Qh3+ {[%clk 0:00:44]}  Kb8 {[%clk 0:00:48]} 29. Bh1 {[%clk 0:00:41]}  cxd5 {[%clk 0:00:35]} 30. Bxd5 {[%clk 0:00:41]}  Rhf8 {[%clk 0:00:31]} 31. Ka2 {[%clk 0:00:37]}  Qg6 {[%clk 0:00:22]} 32. e4 {[%clk 0:00:32]}  Nxe4 {[%clk 0:00:15]} 33. Qd3 {[%clk 0:00:19]}  Rf4 {[%clk 0:00:11]} 34. Rfe1 {[%clk 0:00:13]}  Rxd5 {[%clk 0:00:05]} 35. cxd5 {[%clk 0:00:14]}  Bd6 {[%clk 0:00:02]} 36. Re2 {[%clk 0:00:09]}  Qf5 {[%clk 0:00:02]} 37. Rc1 {[%clk 0:00:05]}  Nc5 {[%clk 0:00:02]} 38. Qb5 {[%clk 0:00:06]}  Qd7 {[%clk 0:00:01]} 39. Rxc5 {[%clk 0:00:05]}  Qxb5 {[%clk 0:00:01]} 40. Rxb5 {[%clk 0:00:06]}  Rd4 {[%clk 0:00:01]} 41. Rf2 {[%clk 0:00:05]}  a6 {[%clk 0:00:02]} 42. Rb6 {[%clk 0:00:05]}  Rxd5 {[%clk 0:00:02]} 43. Rf7 {[%clk 0:00:04]}  Bc7 {[%clk 0:00:03]} 44. Rg6 {[%clk 0:00:04]}  Rd6 {[%clk 0:00:03]} 45. Rgxg7 {[%clk 0:00:04]}  Rc6 {[%clk 0:00:04]} 46. Re7 {[%clk 0:00:05]}  h5 {[%clk 0:00:04]} 47. Rh7 {[%clk 0:00:05]}  b5 {[%clk 0:00:04]} 48. Rh8+ {[%clk 0:00:05]}  Kb7 {[%clk 0:00:05]} 49. Rxh5 {[%clk 0:00:06]}  Kb6 {[%clk 0:00:06]} 50. Rhh7 {[%clk 0:00:06]}  Bd6 {[%clk 0:00:06]} 51. Re6 {[%clk 0:00:06]}  Kc5 {[%clk 0:00:07]} 52. Rhh6 {[%clk 0:00:06]}  Kd5 {[%clk 0:00:07]} 53. Kb1 {[%clk 0:00:06]}  e4 {[%clk 0:00:07]} 54. Re8 {[%clk 0:00:07]}  Kd4 {[%clk 0:00:07]} 55. Rh4 {[%clk 0:00:06]}  Be5 {[%clk 0:00:06]} 56. Rd8+ {[%clk 0:00:05]}  Bd6 {[%clk 0:00:05]} 57. Re8 {[%clk 0:00:03]}  Be5 {[%clk 0:00:05]} 58. Ka2 {[%clk 0:00:03]}  Rd6 {[%clk 0:00:04]} 59. Rh5 {[%clk 0:00:03]}  Bf4 {[%clk 0:00:03]} 60. Rf5 {[%clk 0:00:04]}  Bg3 {[%clk 0:00:03]} 61. Rg5 {[%clk 0:00:04]}  Bf4 {[%clk 0:00:03]} 62. Rg4 {[%clk 0:00:04]}  Ke3 {[%clk 0:00:03]} 63. Rh4 {[%clk 0:00:05]}  Kf3 {[%clk 0:00:03]} 64. Rf8 {[%clk 0:00:03]}  Ke2 {[%clk 0:00:02]} 65. Rhxf4 {[%clk 0:00:04]}  e3 {[%clk 0:00:03]} 66. Re4 {[%clk 0:00:04]}  Kd2 {[%clk 0:00:04]} 67. Rfe8 {[%clk 0:00:04]}  Rd3 {[%clk 0:00:05]} 68. Kb1 {[%clk 0:00:05]}  a5 {[%clk 0:00:05]} 69. R8e5 {[%clk 0:00:05]}  b4 {[%clk 0:00:06]} 70. axb4 {[%clk 0:00:05]}  axb4 {[%clk 0:00:07]} 71. Rxb4 {[%clk 0:00:05]}  e2 {[%clk 0:00:07]} 72. Rbe4 {[%clk 0:00:06]}  Kd1 {[%clk 0:00:07]} 73. Rxe2 {[%clk 0:00:07]}  Re3 {[%clk 0:00:06]} 74. R2xe3 {[%clk 0:00:05]} 1-0


[Site "https://www.chess.com"]

[Event "Titled Tuesday Blitz June 20 Early 2023"]
[White "Lazavik, Denis"]
[Black "Itgelt, Khuyagtsogt"]
[WhiteFideId "13515110"]
[BlackFideId "4902912"]
[WhiteElo "2560"]
[BlackElo "2227"]
[Result "1-0"]
[Round "5"]
[TimeControl "180+2"]
[Date "2023.06.20"]
[WhiteClock "0:00:21"]
[BlackClock "0:00:00"]
[Board "21"]

1. d4 {[%clk 0:03:00]}  Nf6 {[%clk 0:03:00]} 2. c4 {[%clk 0:03:01]}  g6 {[%clk 0:03:00]} 3. g3 {[%clk 0:03:01]}  Bg7 {[%clk 0:02:58]} 4. Bg2 {[%clk 0:03:02]}  d5 {[%clk 0:02:56]} 5. cxd5 {[%clk 0:03:02]}  Nxd5 {[%clk 0:02:56]} 6. Nf3 {[%clk 0:03:02]}  Nb6 {[%clk 0:02:56]} 7. Nc3 {[%clk 0:03:02]}  Nc6 {[%clk 0:02:57]} 8. e3 {[%clk 0:03:02]}  O-O {[%clk 0:02:57]} 9. O-O {[%clk 0:03:03]}  Re8 {[%clk 0:02:56]} 10. Re1 {[%clk 0:03:03]}  a5 {[%clk 0:02:53]} 11. h3 {[%clk 0:02:53]}  e5 {[%clk 0:02:37]} 12. d5 {[%clk 0:02:53]}  Nb4 {[%clk 0:02:34]} 13. e4 {[%clk 0:02:53]}  c6 {[%clk 0:02:34]} 14. a3 {[%clk 0:02:51]}  Na6 {[%clk 0:02:34]} 15. Bg5 {[%clk 0:02:51]}  Bf6 {[%clk 0:02:15]} 16. Be3 {[%clk 0:02:46]}  Nc4 {[%clk 0:02:14]} 17. Bc1 {[%clk 0:02:32]}  cxd5 {[%clk 0:01:45]} 18. Nxd5 {[%clk 0:02:30]}  Be6 {[%clk 0:01:46]} 19. Nxf6+ {[%clk 0:02:14]}  Qxf6 {[%clk 0:01:47]} 20. b3 {[%clk 0:02:13]}  Nb6 {[%clk 0:01:40]} 21. Bg5 {[%clk 0:02:11]}  Qg7 {[%clk 0:01:39]} 22. Be3 {[%clk 0:02:02]}  Red8 {[%clk 0:01:33]} 23. Qe2 {[%clk 0:01:59]}  Nd7 {[%clk 0:01:33]} 24. Qb5 {[%clk 0:01:58]}  f6 {[%clk 0:01:16]} 25. Rec1 {[%clk 0:01:16]}  Qf7 {[%clk 0:00:53]} 26. Nd2 {[%clk 0:01:14]}  b6 {[%clk 0:00:47]} 27. b4 {[%clk 0:01:11]}  Rdb8 {[%clk 0:00:31]} 28. h4 {[%clk 0:00:40]}  Qe7 {[%clk 0:00:27]} 29. Rab1 {[%clk 0:00:40]}  axb4 {[%clk 0:00:24]} 30. axb4 {[%clk 0:00:41]}  Nf8 {[%clk 0:00:24]} 31. Nc4 {[%clk 0:00:27]}  Bd7 {[%clk 0:00:08]} 32. Qd5+ {[%clk 0:00:27]}  Be6 {[%clk 0:00:08]} 33. Qd2 {[%clk 0:00:27]}  b5 {[%clk 0:00:05]} 34. Na5 {[%clk 0:00:27]}  Nxb4 {[%clk 0:00:03]} 35. Bc5 {[%clk 0:00:20]}  Qd8 {[%clk 0:00:01]} 36. Qxd8 {[%clk 0:00:20]}  Rxd8 {[%clk 0:00:00]} 37. Bxb4 {[%clk 0:00:21]} 1-0


[Site "https://www.chess.com"]

[Event "Titled Tuesday Blitz June 20 Early 2023"]
[White "Terry, Renato"]
[Black "Vaibhav Jayant Raut"]
[WhiteFideId "3803457"]
[BlackFideId "5089034"]
[WhiteElo "2575"]
[BlackElo "2156"]
[Result "1-0"]
[Round "5"]
[TimeControl "180+2"]
[Date "2023.06.20"]
[WhiteClock "0:00:17"]
[BlackClock "0:00:03"]
[Board "25"]

1. e4 {[%clk 0:02:55]}  c5 {[%clk 0:02:56]} 2. Nf3 {[%clk 0:02:55]}  Nc6 {[%clk 0:02:53]} 3. g3 {[%clk 0:02:53]}  g6 {[%clk 0:02:48]} 4. Bg2 {[%clk 0:02:53]}  Bg7 {[%clk 0:02:47]} 5. O-O {[%clk 0:02:53]}  e5 {[%clk 0:02:41]} 6. c3 {[%clk 0:02:45]}  d6 {[%clk 0:02:40]} 7. Na3 {[%clk 0:02:44]}  Nge7 {[%clk 0:02:40]} 8. Nc2 {[%clk 0:02:43]}  O-O {[%clk 0:02:39]} 9. d4 {[%clk 0:02:43]}  cxd4 {[%clk 0:02:37]} 10. cxd4 {[%clk 0:02:43]}  d5 {[%clk 0:02:14]} 11. exd5 {[%clk 0:02:38]}  Nxd5 {[%clk 0:02:06]} 12. Nxe5 {[%clk 0:02:38]}  Nxe5 {[%clk 0:01:52]} 13. dxe5 {[%clk 0:02:39]}  Be6 {[%clk 0:01:48]} 14. Nd4 {[%clk 0:02:39]}  Bxe5 {[%clk 0:01:25]} 15. Nxe6 {[%clk 0:02:35]}  fxe6 {[%clk 0:01:26]} 16. Qe2 {[%clk 0:02:25]}  Qd6 {[%clk 0:01:19]} 17. Bh6 {[%clk 0:02:21]}  Rf5 {[%clk 0:01:14]} 18. Rad1 {[%clk 0:01:59]}  Rd8 {[%clk 0:01:02]} 19. Be4 {[%clk 0:01:54]}  Rf7 {[%clk 0:00:51]} 20. Rfe1 {[%clk 0:01:54]}  Bg7 {[%clk 0:00:47]} 21. Bxg7 {[%clk 0:01:48]}  Kxg7 {[%clk 0:00:46]} 22. Bg2 {[%clk 0:01:48]}  Qc5 {[%clk 0:00:43]} 23. Rd2 {[%clk 0:01:45]}  Rdf8 {[%clk 0:00:36]} 24. Qe5+ {[%clk 0:01:45]}  Rf6 {[%clk 0:00:24]} 25. Rf1 {[%clk 0:01:38]}  Rd8 {[%clk 0:00:18]} 26. Rfd1 {[%clk 0:01:15]}  Rf8 {[%clk 0:00:16]} 27. Bh3 {[%clk 0:00:57]}  Kh6 {[%clk 0:00:10]} 28. Rd4 {[%clk 0:00:48]}  g5 {[%clk 0:00:06]} 29. Bxe6 {[%clk 0:00:45]}  Rxf2 {[%clk 0:00:04]} 30. Bxd5 {[%clk 0:00:46]}  R2f5 {[%clk 0:00:03]} 31. Qe6+ {[%clk 0:00:38]}  R8f6 {[%clk 0:00:03]} 32. Qe4 {[%clk 0:00:39]}  g4 {[%clk 0:00:01]} 33. b4 {[%clk 0:00:35]}  Qc3 {[%clk 0:00:01]} 34. R4d3 {[%clk 0:00:32]}  Qb2 {[%clk 0:00:01]} 35. Qe3+ {[%clk 0:00:32]}  Kh5 {[%clk 0:00:02]} 36. Qd2 {[%clk 0:00:28]}  Qe5 {[%clk 0:00:01]} 37. Bg2 {[%clk 0:00:29]}  h6 {[%clk 0:00:01]} 38. Rd5 {[%clk 0:00:27]}  Qe6 {[%clk 0:00:02]} 39. Rxf5+ {[%clk 0:00:26]}  Rxf5 {[%clk 0:00:02]} 40. a3 {[%clk 0:00:16]}  Qb6+ {[%clk 0:00:02]} 41. Qd4 {[%clk 0:00:16]}  Qf6 {[%clk 0:00:03]} 42. Qxf6 {[%clk 0:00:16]}  Rxf6 {[%clk 0:00:03]} 43. Be4 {[%clk 0:00:17]}  Re6 {[%clk 0:00:03]} 44. Rd5+ {[%clk 0:00:17]}  Re5 {[%clk 0:00:03]} 45. Rxe5# {[%clk 0:00:17]} 1-0


[Site "https://www.chess.com"]